fUST/lending_fUST_20250501
["ID","MTS","AMOUNT","RATE_DAILY","PERIOD"]
[359534929,1746096639151,-1000.0,0.00024573,2]
[359534930,1746096639160,-500.0,0.00024573,2]
[359534931,1746096639169,-500.0,0.00024573,2]
[359534932,1746096639179,-300.0,0.00024573,2]
[359534933,1746096639189,-420.0,0.00024574,2]
[359534934,1746096639199,-420.0,0.00024576,2]
[359534935,1746096639208,-420.0,0.00024576,2]
[359534936,1746096639218,-422.10997939,0.00024673,2]
[359534937,1746096639227,-509.96264343,0.00024673,2]
[359534938,1746096639237,-500.0,0.00024673,2]
[359534939,1746096639246,-500.0,0.00024673,2]
[359534940,1746096639256,-500.0,0.00024673,2]
[359534941,1746096639266,-500.0,0.00024673,2]
[359534942,1746096639275,-290.60865643,0.00024673,2]
[359534943,1746096639285,-500.0,0.00024673,2]
[359534944,1746096639294,-1680.0,0.0002469,2]
[359534945,1746096639303,-500.0,0.00024873,2]
[359534946,1746096639313,-500.0,0.00024873,2]
[359534947,1746096639322,-8204.83642692,0.000249,2]
[359534948,1746096639331,-296059.137709,0.000249,2]
[359534949,1746096639340,-293.90184184,0.00024995,2]
[359534950,1746096639350,-502.0,0.00025,2]
[359534951,1746096639361,-500.0,0.00025,7]
[359534952,1746096639371,-481.01115399,0.00025,12]
[359534953,1746096639380,-481.0111539,0.00025,12]
[359534954,1746096639389,-481.0111539,0.00025072,12]
[359534955,1746096639399,-160.0,0.00025375,2]
[359534956,1746096639408,-160.0,0.00025375,2]
[359534957,1746096639418,-160.0,0.00025375,2]
[359534958,1746096639428,-182.07995741,0.00025375,2]
[359534959,1746096639437,-421.4777418,0.00025375,2]
[359534960,1746096639446,-160.0,0.00025375,2]
[359534961,1746096639456,-160.0,0.00025375,2]
[359534962,1746096639465,-313.5174939,0.00025375,2]
[359534963,1746096639476,-481.0111539,0.00025659,13]
[359534964,1746096639485,-500.0,0.00025875,2]
[359534965,1746096639495,-500.0,0.00025875,2]
[359534966,1746096639504,-500.0,0.00025875,2]
[359534967,1746096639514,-500.0,0.00025875,2]
[359534968,1746096639523,-500.0,0.00025875,2]
[359534969,1746096639533,-500.0,0.00025875,2]
[359534970,1746096639542,-151.82832976,0.00025875,2]
[359534971,1746096639552,-539.48931594,0.00025875,2]
[359534972,1746096639562,-500.0,0.00025875,2]
[359534974,1746096639572,-500.0,0.00025875,2]
[359534975,1746096639581,-500.0,0.00025875,2]
[359534976,1746096639590,-500.0,0.00025875,2]
[359534977,1746096639600,-500.0,0.00025875,2]
[359534978,1746096639610,-500.0,0.00025875,2]
[359534979,1746096639619,-619.34299103,0.00025875,2]
[359534980,1746096639637,-500.0,0.00025875,2]
[359534981,1746096639650,-500.0,0.00025875,2]
[359534982,1746096639660,-500.0,0.00025875,2]
[359534983,1746096639670,-500.0,0.00025875,2]
[359534984,1746096639680,-501.63846269,0.00025875,2]
[359534985,1746096639690,-500.0,0.00025875,2]
[359534986,1746096639700,-503.14672569,0.00025875,2]
[359534987,1746096639710,-500.0,0.00025875,2]
[359534988,1746096639721,-500.0,0.00025875,2]
[359534989,1746096639730,-362.26,0.00025939,3]
[359534990,1746096639740,-537.02,0.00025939,3]
[359534991,1746096639750,-468.92567448,0.00025974,2]
[359534992,1746096639760,-600.0,0.00026216,2]
[359534993,1746096639770,-481.0111539,0.00026245,14]
[359534994,1746096639780,-250.0,0.000263,30]
[359534995,1746096639791,-587.0,0.00026687,2]
[359534996,1746096639800,-520.0,0.00026689,2]
[359534997,1746096639811,-587.0,0.00026689,2]
[359534998,1746096639820,-481.0111539,0.00026831,15]
[359534999,1746096639830,-2351.0,0.00026938,2]
[359535000,1746096639840,-209.287313,0.00027397,120]
[359535001,1746096639850,-1382.425222,0.00027397,2]
[359535002,1746096639860,-481.0111539,0.00027417,17]
[359535003,1746096639870,-202.51290915,0.0002745,3]
[359535005,1746096639880,-154.0,0.0002745,3]
[359535007,1746096639889,-211.17957468,0.0002745,3]
[359535009,1746096639899,-154.0,0.0002745,3]
[359535011,1746096639909,-154.0,0.0002745,3]
[359535012,1746096639918,-154.0,0.0002745,3]
[359535013,1746096639927,-154.0,0.0002745,3]
[359535014,1746096639937,-231.09911934,0.0002745,3]
[359535015,1746096639946,-166.0,0.0002745,3]
[359535016,1746096639955,-159.0,0.0002745,3]
[359535017,1746096639965,-159.0,0.0002745,3]
[359535018,1746096639975,-166.0,0.0002745,3]
[359535019,1746096639985,-159.0,0.0002745,3]
[359535020,1746096639994,-162.89753949,0.0002745,3]
[359535021,1746096640003,-159.0,0.0002745,3]
[359535022,1746096640013,-163.17042962,0.0002745,3]
[359535023,1746096640023,-320.0,0.0002745,3]
[359535024,1746096640036,-320.0,0.0002745,3]
[359535025,1746096640046,-320.0,0.0002745,3]
[359535026,1746096640055,-320.0,0.0002745,3]
[359535028,1746096640066,-320.0,0.0002745,3]
[359535030,1746096640076,-360.0,0.0002745,3]
[359535032,1746096640085,-360.0,0.0002745,3]
[359535034,1746096640095,-320.0,0.0002745,3]
[359535036,1746096640104,-360.0,0.0002745,3]
[359535038,1746096640115,-320.0,0.0002745,3]
[359535040,1746096640124,-320.0,0.0002745,3]
[359535043,1746096640134,-360.0,0.0002745,3]
[359535045,1746096640144,-320.0,0.0002745,3]
[359535047,1746096640154,-360.0,0.0002745,3]
[359535049,1746096640163,-320.0,0.0002745,3]
[359535051,1746096640173,-360.0,0.0002745,3]
[359535053,1746096640183,-320.0,0.0002745,3]
[359535055,1746096640194,-360.0,0.0002745,3]
[359535057,1746096640204,-320.0,0.0002745,3]
[359535059,1746096640214,-360.0,0.0002745,3]
[359535061,1746096640223,-320.0,0.0002745,3]
[359535063,1746096640233,-360.0,0.0002745,3]
[359535065,1746096640242,-320.0,0.0002745,3]
[359535067,1746096640252,-360.0,0.0002745,3]
[359535069,1746096640261,-320.0,0.0002745,3]
[359535071,1746096640272,-360.0,0.0002745,3]
[359535073,1746096640281,-320.0,0.0002745,3]
[359535075,1746096640291,-360.0,0.0002745,3]
[359535077,1746096640301,-320.0,0.0002745,3]
[359535079,1746096640311,-360.0,0.0002745,3]
[359535081,1746096640321,-320.0,0.0002745,3]
[359535083,1746096640331,-360.0,0.0002745,3]
[359535085,1746096640341,-320.0,0.0002745,3]
[359535087,1746096640351,-360.0,0.0002745,3]
[359535090,1746096640360,-320.0,0.0002745,3]
[359535092,1746096640371,-360.0,0.0002745,3]
[359535094,1746096640380,-320.0,0.0002745,3]
[359535096,1746096640390,-360.0,0.0002745,3]
[359535098,1746096640400,-320.0,0.0002745,3]
[359535100,1746096640409,-360.0,0.0002745,3]
[359535102,1746096640419,-320.0,0.0002745,3]
[359535104,1746096640429,-360.0,0.0002745,3]
[359535106,1746096640438,-320.0,0.0002745,3]
[359535108,1746096640448,-360.0,0.0002745,3]
[359535110,1746096640458,-320.0,0.0002745,3]
[359535112,1746096640468,-360.0,0.0002745,3]
[359535114,1746096640478,-320.0,0.0002745,3]
[359535116,1746096640488,-360.0,0.0002745,3]
[359535118,1746096640498,-320.0,0.0002745,3]
[359535120,1746096640508,-360.0,0.0002745,3]
[359535122,1746096640518,-320.0,0.0002745,3]
[359535124,1746096640528,-360.0,0.0002745,3]
[359535126,1746096640538,-360.0,0.0002745,3]
[359535128,1746096640547,-320.0,0.0002745,3]
[359535130,1746096640557,-360.0,0.0002745,3]
[359535132,1746096640567,-320.0,0.0002745,3]
[359535134,1746096640576,-360.0,0.0002745,3]
[359535136,1746096640585,-320.0,0.0002745,3]
[359535138,1746096640595,-320.0,0.0002745,3]
[359535140,1746096640605,-360.0,0.0002745,3]
[359535143,1746096640617,-320.0,0.0002745,3]
[359535145,1746096640627,-360.0,0.0002745,3]
[359535147,1746096640636,-320.0,0.0002745,3]
[359535149,1746096640646,-360.0,0.0002745,3]
[359535151,1746096640655,-320.0,0.0002745,3]
[359535153,1746096640665,-360.0,0.0002745,3]
[359535155,1746096640675,-320.0,0.0002745,3]
[359535157,1746096640685,-360.0,0.0002745,3]
[359535159,1746096640694,-360.0,0.0002745,3]
[359535161,1746096640704,-320.0,0.0002745,3]
[359535163,1746096640714,-320.0,0.0002745,3]
[359535165,1746096640724,-320.0,0.0002745,3]
[359535167,1746096640733,-218.07477306,0.0002745,3]
[359535169,1746096640743,-160.0,0.0002745,3]
[359535171,1746096640754,-160.0,0.0002745,3]
[359535173,1746096640764,-160.0,0.0002745,3]
[359535175,1746096640773,-160.0,0.0002745,3]
[359535177,1746096640783,-160.0,0.0002745,3]
[359535179,1746096640793,-421.4777418,0.0002745,3]
[359535181,1746096640803,-160.0,0.0002745,3]
[359535184,1746096640813,-796.87968281,0.0002745,3]
[359535186,1746096640822,-160.0,0.0002745,3]
[359535188,1746096640832,-12595.7684382,0.0002745,3]
[359535190,1746096640841,-500.0,0.000275,5]
[359535192,1746096640851,-500.63328036,0.000275,5]
[359535194,1746096640861,-502.34371605,0.000275,5]
[359535196,1746096640870,-500.0,0.000275,5]
[359535198,1746096640880,-500.0,0.000275,5]
[359535200,1746096640889,-500.0,0.000275,5]
[359535202,1746096640899,-500.0,0.000275,5]
[359535204,1746096640909,-500.0,0.000275,5]
[359535206,1746096640919,-1111.53847605,0.00027593,2]
[359535208,1746096640930,-8204.83642692,0.00027623,2]
[359535210,1746096640939,-360.0,0.00027765,3]
[359535212,1746096640950,-360.0,0.00027765,3]
[359535214,1746096640960,-360.0,0.00027765,3]
[359535216,1746096640970,-900.0,0.0002786,5]
[359535218,1746096640980,-421.4777418,0.00028,3]
[359535220,1746096640990,-160.0,0.00028,3]
[359535222,1746096641000,-481.0111539,0.00028003,18]
[359535224,1746096641010,-250.0,0.000283,30]
[359535226,1746096641019,-481.0111539,0.0002859,19]
[359535228,1746096641031,-823.0,0.00028981,2]
[359535230,1746096641041,-823.0,0.00028983,2]
[359535232,1746096641051,-421.4777418,0.00029,10]
[359535234,1746096641061,-250.0,0.00029069,2]
[359535236,1746096641071,-1000.0,0.00029152,5]
[359535238,1746096641081,-1000.0,0.00029152,5]
[359535240,1746096641090,-1000.0,0.00029152,5]
[359535242,1746096641100,-1000.0,0.00029152,5]
[359535244,1746096641110,-1000.0,0.00029152,5]
[359535246,1746096641120,-1000.0,0.00029152,2]
[359535248,1746096641130,-1000.0,0.00029152,5]
[359535250,1746096641140,-1000.0,0.00029152,5]
[359535252,1746096641149,-502.59911486,0.00029152,5]
[359535254,1746096641158,-481.0111539,0.00029176,20]
[359535256,1746096641168,-3292.0,0.0002939,2]
[359535258,1746096641177,-1200.0,0.00029504,5]
[359535260,1746096641187,-481.0111539,0.00029762,21]
[359535262,1746096641197,-369.10312268,0.0003,2]
[359535264,1746096641207,-234.0,0.0003,2]
[359535266,1746096641217,-151.0,0.0003,2]
[359535268,1746096641228,-2271.59126983,0.00030008,2]
[359535270,1746096641237,-191.68058665,0.00030052,2]
[359535272,1746096641247,-1000.0,0.00030052,5]
[359535274,1746096641256,-607.54184964,0.00030152,5]
[359535276,1746096641265,-1000.0,0.00030152,5]
[359535278,1746096641275,-151.67676012,0.00030152,5]
[359535280,1746096641285,-250.0,0.000303,30]
[359535282,1746096641295,-8204.83642692,0.00030345,2]
[359535284,1746096641304,-481.0111539,0.00030348,22]
[359535286,1746096641313,-1000.0,0.00030352,5]
[359535288,1746096641323,-286.26615067,0.00030352,5]
[359535290,1746096641332,-481.0111539,0.00030934,24]
[359535292,1746096641342,-1500.0,0.00031148,5]
[359535294,1746096641352,-172.897,0.00031242,2]
[359535296,1746096641361,-154.33075,0.00031242,2]
[359535298,1746096641371,-500.0,0.00031354,5]
[359535300,1746096641380,-500.0,0.00031354,5]
[359535302,1746096641389,-340.13693555,0.00031354,5]
[359535304,1746096641399,-501.78431801,0.00031354,5]
[359535306,1746096641409,-500.0,0.00031354,5]
[359535308,1746096641418,-500.0,0.00031354,5]
[359535310,1746096641429,-626.90881295,0.00031354,3]
[359535312,1746096641438,-1000.0,0.00031354,5]
[359535314,1746096641448,-500.0,0.00031354,5]
[359535316,1746096641457,-172.90116035,0.00031354,5]
[359535318,1746096641467,-500.0,0.00031354,5]
[359535320,1746096641476,-500.0,0.00031354,5]
[359535322,1746096641486,-1002.21468671,0.00031354,5]
[359535324,1746096641496,-500.0,0.00031354,5]
[359535326,1746096641505,-293.35060351,0.00031354,5]
[359535328,1746096641515,-213.34599747,0.00031354,5]
[359535330,1746096641525,-1000.0,0.00031354,5]
[359535332,1746096641534,-506.56622276,0.00031354,5]
[359535334,1746096641543,-1062.26843574,0.00031354,5]
[359535336,1746096641553,-5000.0,0.00031436,2]
[359535338,1746096641562,-261.0,0.00031473,3]
[359535340,1746096641571,-1152.0,0.00031474,2]
[359535342,1746096641580,-151.0,0.000315,13]
[359535362,1746096641753,-481.0111539,0.00031521,25]
[359535363,1746096641763,-500.0,0.00031973,5]
[359535364,1746096641773,-502.29208565,0.00031973,5]
[359535365,1746096641783,-500.0,0.00031973,5]
[359535366,1746096641792,-150.0,0.00031973,5]
[359535367,1746096641802,-108519.57187927,0.00032,30]
[359535368,1746096641811,-613117.32,0.00032,5]
[359535369,1746096641821,-160.0,0.00032,30]
[359535370,1746096641831,-160.0,0.00032,30]
[359535371,1746096641841,-421.4777418,0.00032,30]
[359535372,1746096641850,-160.0,0.00032,30]
[359535373,1746096641859,-12595.7684382,0.00032,30]
[359535374,1746096641868,-4609.0,0.00032065,3]
[359535375,1746096641878,-481.0111539,0.00032107,26]
[359535377,1746096641887,-250.0,0.000323,30]
[359535379,1746096641896,-250.0,0.00032521,5]
[359535381,1746096641905,-1111.53847605,0.00032593,2]
[359535383,1746096641914,-481.0111539,0.00032693,27]
[359535385,1746096641925,-1800.0,0.00032792,5]
[359535387,1746096641934,-5000.0,0.00032865,2]
[359535389,1746096641943,-500.0,0.00032873,5]
[359535391,1746096641953,-500.0,0.00032873,5]
[359535393,1746096641962,-402.47583889,0.00032877,60]
[359535395,1746096641971,-283.65041549,0.00032877,7]
[359535397,1746096641981,-63017.69,0.000329,30]
[359535399,1746096641991,-4706.8,0.000329,30]
[359535401,1746096642001,-5439.67,0.000329,7]
[359535403,1746096642010,-2098.56,0.000329,30]
[359535405,1746096642019,-1000.0,0.00032979,5]
[359535407,1746096642031,-1001.21699452,0.00032979,5]
[359535409,1746096642041,-500.0,0.00032979,5]
[359535411,1746096642051,-1000.0,0.00032979,5]
[359535413,1746096642061,-151.0,0.00033,17]
[359535415,1746096642070,-234.0,0.00033,2]
[359535417,1746096642080,-234.0,0.00033,2]
[359535419,1746096642089,-841.10298755,0.0003304,2]
[359535421,1746096642098,-12595.7684382,0.0003304,2]
[359535423,1746096642107,-160.0,0.00033045,2]
[359535425,1746096642117,-8204.83642692,0.00033068,2]
[359535427,1746096642127,-350.0,0.00033068,5]
[359535429,1746096642136,-184.042,0.00033116,34]
[359535431,1746096642146,-566.586,0.00033119,2]
[359535433,1746096642155,-707.0,0.00033119,2]
[359535435,1746096642165,-2245.0,0.00033119,2]
[359535437,1746096642174,-292.868,0.00033119,2]
[359535439,1746096642184,-1382.425222,0.00033165,2]
[359535441,1746096642193,-481.0111539,0.00033279,28]
[359535443,1746096642203,-160.0,0.0003337,3]
[359535445,1746096642212,-12595.7684382,0.0003337,3]
[359535446,1746096642223,-160.0,0.000334,3]
[359535448,1746096642233,-160.0,0.000334,3]
[359535450,1746096642243,-421.4777418,0.000334,3]
[359535452,1746096642253,-450.0,0.00033616,5]
[359535454,1746096642262,-481.0111539,0.00033866,29]
[359535457,1746096642273,-550.0,0.00034164,5]
[359535459,1746096642283,-1613.0,0.0003418,2]
[359535461,1746096642292,-5000.0,0.00034293,2]
[359535463,1746096642301,-250.0,0.000343,30]
[359535465,1746096642310,-179.80221756,0.0003441,12]
[359535467,1746096642320,-2100.0,0.00034436,5]
[359535469,1746096642330,-481.0111539,0.00034452,30]
[359535471,1746096642339,-151.0,0.000345,17]
[359535473,1746096642349,-635.0,0.000345,2]
[359535475,1746096642358,-160.63,0.00034599,2]
[359535477,1746096642367,-160.63,0.00034599,2]
[359535479,1746096642377,-160.63,0.00034599,2]
[359535481,1746096642387,-650.0,0.00034712,5]
[359535483,1746096642397,-2407.0,0.00034983,3]
[359535485,1746096642406,-300.0,0.00035,2]
[359535487,1746096642416,-481.0111539,0.00035038,32]
[359535489,1746096642426,-1219.07589331,0.00035046,15]
[359535491,1746096642436,-267.61761377,0.00035068,3]
[359535493,1746096642446,-2098.56,0.000351,30]
[359535495,1746096642455,-750.0,0.0003526,5]
[359535497,1746096642465,-63556.79442879,0.00035616,2]
[359535499,1746096642475,-6440.15489487,0.00035616,3]
[359535501,1746096642485,-902.74,0.00035616,12]
[359535503,1746096642494,-400.0,0.00035616,12]
[359535505,1746096642503,-400.0,0.00035616,12]
[359535507,1746096642514,-400.0,0.00035616,12]
[359535510,1746096642525,-400.0,0.00035616,12]
[359535513,1746096642535,-400.0,0.00035616,12]
[359535515,1746096642547,-400.0,0.00035616,12]
[359535517,1746096642556,-400.0,0.00035616,12]
[359535519,1746096642566,-400.0,0.00035616,12]
[359535521,1746096642575,-400.0,0.00035616,12]
[359535523,1746096642585,-400.0,0.00035616,12]
[359535525,1746096642594,-400.0,0.00035616,12]
[359535527,1746096642604,-590.31,0.00035616,12]
[359535529,1746096642613,-492.25,0.00035616,12]
[359535531,1746096642623,-400.0,0.00035616,12]
[359535533,1746096642633,-418.59343452,0.00035616,12]
[359535535,1746096642642,-400.0,0.00035616,12]
[359535537,1746096642652,-400.0,0.00035616,12]
[359535539,1746096642662,-801.35,0.00035616,12]
[359535541,1746096642672,-400.0,0.00035616,12]
[359535543,1746096642682,-400.0,0.00035616,12]
[359535544,1746096642692,-400.0,0.00035616,12]
[359535546,1746096642702,-301.45918208,0.00035616,2]
[359535548,1746096642711,-400.0,0.00035616,12]
[359535549,1746096642721,-400.0,0.00035616,12]
[359535551,1746096642730,-400.0,0.00035616,12]
[359535552,1746096642739,-400.0,0.00035616,12]
[359535553,1746096642749,-423.58,0.00035616,12]
[359535555,1746096642759,-432.05,0.00035616,12]
[359535557,1746096642769,-500.0,0.00035616,12]
[359535558,1746096642778,-400.0,0.00035616,12]
[359535561,1746096642787,-400.0,0.00035616,12]
[359535562,1746096642797,-400.0,0.00035616,12]
[359535564,1746096642806,-400.0,0.00035616,12]
[359535565,1746096642815,-428.13,0.00035616,12]
[359535567,1746096642825,-199.19224614,0.00035616,12]
[359535568,1746096642834,-505.27153541,0.00035616,12]
[359535570,1746096642844,-318.46557483,0.00035616,12]
[359535571,1746096642853,-400.0,0.00035616,12]
[359535573,1746096642864,-400.0,0.00035616,12]
[359535574,1746096642873,-500.0,0.00035616,12]
[359535576,1746096642882,-400.0,0.00035616,12]
[359535577,1746096642892,-400.0,0.00035616,12]
[359535579,1746096642902,-400.0,0.00035616,12]
[359535581,1746096642911,-400.0,0.00035616,12]
[359535582,1746096642921,-400.0,0.00035616,12]
[359535584,1746096642930,-533.88,0.00035616,12]
[359535585,1746096642940,-500.0,0.00035616,12]
[359535587,1746096642949,-500.0,0.00035616,12]
[359535589,1746096642959,-500.0,0.00035616,12]
[359535590,1746096642969,-500.0,0.00035616,12]
[359535592,1746096642978,-507.82858306,0.00035616,12]
[359535593,1746096642987,-400.0,0.00035616,12]
[359535595,1746096642997,-400.0,0.00035616,12]
[359535596,1746096643006,-400.0,0.00035616,12]
[359535598,1746096643016,-400.0,0.00035616,12]
[359535600,1746096643025,-634.75,0.00035616,12]
[359535601,1746096643039,-400.0,0.00035616,12]
[359535603,1746096643048,-400.0,0.00035616,12]
[359535604,1746096643057,-501.49196063,0.00035616,12]
[359535606,1746096643066,-400.0,0.00035616,12]
[359535608,1746096643076,-500.0,0.00035616,12]
[359535609,1746096643085,-500.0,0.00035616,12]
[359535611,1746096643095,-500.0,0.00035616,12]
[359535612,1746096643104,-500.0,0.00035616,12]
[359535614,1746096643113,-500.0,0.00035616,12]
[359535616,1746096643124,-500.0,0.00035616,12]
[359535617,1746096643134,-500.0,0.00035616,12]
[359535619,1746096643144,-500.0,0.00035616,12]
[359535620,1746096643154,-500.0,0.00035616,12]
[359535622,1746096643164,-500.0,0.00035616,12]
[359535624,1746096643174,-500.0,0.00035616,12]
[359535625,1746096643183,-500.0,0.00035616,12]
[359535627,1746096643194,-156.41721617,0.00035616,12]
[359535629,1746096643204,-470.4970922,0.00035616,12]
[359535630,1746096643214,-1060.8,0.00035616,12]
[359535632,1746096643223,-400.0,0.00035616,12]
[359535634,1746096643234,-400.0,0.00035616,12]
[359535635,1746096643244,-1000.0,0.00035616,12]
[359535637,1746096643254,-400.0,0.00035616,12]
[359535638,1746096643263,-400.0,0.00035616,12]
[359535640,1746096643272,-400.0,0.00035616,12]
[359535642,1746096643283,-400.0,0.00035616,12]
[359535643,1746096643293,-5879.35,0.00035616,12]
[359535645,1746096643304,-400.0,0.00035616,12]
[359535647,1746096643315,-400.0,0.00035616,12]
[359535648,1746096643324,-501.9365852,0.00035616,12]
[359535650,1746096643333,-400.0,0.00035616,12]
[359535651,1746096643343,-267.03139433,0.00035616,12]
[359535653,1746096643354,-400.0,0.00035616,12]
[359535655,1746096643363,-400.0,0.00035616,12]
[359535656,1746096643373,-1242.1,0.00035616,12]
[359535658,1746096643382,-1506.06,0.00035616,12]
[359535660,1746096643393,-400.0,0.00035616,12]
[359535661,1746096643402,-400.0,0.00035616,12]
[359535663,1746096643412,-335.55678851,0.00035616,12]
[359535665,1746096643421,-400.0,0.00035616,12]
[359535668,1746096643431,-400.0,0.00035616,12]
[359535671,1746096643440,-527.81653058,0.00035616,12]
[359535672,1746096643449,-400.0,0.00035616,12]
[359535674,1746096643459,-972.05,0.00035616,12]
[359535675,1746096643468,-400.0,0.00035616,12]
[359535677,1746096643479,-400.0,0.00035616,12]
[359535679,1746096643489,-163.85616769,0.00035616,12]
[359535680,1746096643499,-400.0,0.00035616,12]
[359535682,1746096643508,-437.91,0.00035616,12]
[359535683,1746096643517,-400.0,0.00035616,12]
[359535685,1746096643527,-400.0,0.00035616,12]
[359535687,1746096643536,-400.0,0.00035616,12]
[359535688,1746096643545,-400.0,0.00035616,12]
[359535690,1746096643554,-501.68939261,0.00035616,12]
[359535691,1746096643563,-974.81,0.00035616,12]
[359535693,1746096643573,-400.0,0.00035616,12]
[359535694,1746096643582,-400.0,0.00035616,12]
[359535696,1746096643591,-922.16,0.00035616,12]
[359535698,1746096643601,-1363.87,0.00035616,12]
[359535699,1746096643611,-400.0,0.00035616,12]
[359535701,1746096643621,-400.0,0.00035616,12]
[359535703,1746096643630,-400.0,0.00035616,12]
[359535704,1746096643639,-400.0,0.00035616,12]
[359535706,1746096643649,-401.9710118,0.00035616,12]
[359535708,1746096643658,-400.0,0.00035616,12]
[359535709,1746096643668,-502.75600258,0.00035616,12]
[359535711,1746096643677,-401.71632736,0.00035616,12]
[359535712,1746096643686,-400.0,0.00035616,12]
[359535714,1746096643695,-1130.45,0.00035616,12]
[359535716,1746096643705,-400.0,0.00035616,12]
[359535717,1746096643715,-1035.43,0.00035616,12]
[359535719,1746096643726,-400.0,0.00035616,12]
[359535720,1746096643735,-400.0,0.00035616,12]
[359535722,1746096643745,-514.82670128,0.00035616,12]
[359535724,1746096643754,-400.0,0.00035616,12]
[359535725,1746096643764,-500.0,0.00035616,12]
[359535727,1746096643773,-205.17687803,0.00035616,12]
[359535728,1746096643782,-400.0,0.00035616,12]
[359535730,1746096643792,-400.0,0.00035616,12]
[359535731,1746096643801,-400.0,0.00035616,12]
[359535733,1746096643810,-405.82490879,0.00035616,12]
[359535735,1746096643820,-400.0,0.00035616,12]
[359535736,1746096643829,-400.0,0.00035616,12]
[359535738,1746096643839,-544.71,0.00035616,12]
[359535740,1746096643849,-400.0,0.00035616,12]
[359535741,1746096643858,-400.0,0.00035616,12]
[359535743,1746096643867,-400.0,0.00035616,12]
[359535745,1746096643877,-400.0,0.00035616,12]
[359535746,1746096643886,-400.0,0.00035616,12]
[359535748,1746096643896,-999.06,0.00035616,12]
[359535749,1746096643905,-400.0,0.00035616,12]
[359535751,1746096643915,-400.0,0.00035616,12]
[359535753,1746096643924,-403.10949804,0.00035616,12]
[359535754,1746096643933,-403.78298982,0.00035616,12]
[359535756,1746096643943,-400.0,0.00035616,12]
[359535758,1746096643951,-400.0,0.00035616,12]
[359535760,1746096643961,-500.0,0.00035616,12]
[359535762,1746096643970,-500.0,0.00035616,12]
[359535763,1746096643981,-500.0,0.00035616,12]
[359535764,1746096643990,-304.40903972,0.00035616,12]
[359535765,1746096643999,-400.0,0.00035616,12]
[359535766,1746096644009,-487.72,0.00035616,12]
[359535767,1746096644018,-401.58273591,0.00035616,12]
[359535768,1746096644029,-400.0,0.00035616,12]
[359535769,1746096644040,-400.0,0.00035616,12]
[359535770,1746096644050,-400.0,0.00035616,12]
[359535771,1746096644059,-400.0,0.00035616,12]
[359535772,1746096644069,-402.64282649,0.00035616,12]
[359535773,1746096644078,-400.0,0.00035616,12]
[359535774,1746096644088,-400.0,0.00035616,12]
[359535775,1746096644098,-400.0,0.00035616,12]
[359535776,1746096644107,-687.88,0.00035616,12]
[359535777,1746096644117,-501.88113071,0.00035616,12]
[359535778,1746096644127,-400.0,0.00035616,12]
[359535779,1746096644137,-518.26811235,0.00035616,12]
[359535780,1746096644147,-400.0,0.00035616,12]
[359535781,1746096644157,-400.0,0.00035616,12]
[359535782,1746096644166,-223.97278716,0.00035616,12]